fUSD/lending_fUSD_20260203
["ID","MTS","AMOUNT","RATE_DAILY","PERIOD"]
[404461437,1770157392819,-500.0,0.0001,2]
[404461438,1770157392864,-500.0,0.0001,2]
[404461439,1770157392908,-151.0,0.0001,2]
[404461440,1770157392952,-500.0,0.0001,2]
[404461441,1770157392997,-151.0,0.0001,2]
[404461442,1770157393040,-500.0,0.0001,2]
[404461443,1770157393085,-151.0,0.0001,2]
[404461444,1770157393127,-151.0,0.0001,2]
[404461445,1770157393172,-151.0,0.0001,2]
[404461446,1770157393215,-151.0,0.0001,2]
[404461447,1770157393258,-151.0,0.0001,2]
[404461448,1770157393299,-151.0,0.0001,2]
[404461449,1770157393340,-151.0,0.0001,2]
[404461450,1770157393382,-151.0,0.0001,2]
[404461451,1770157393424,-151.0,0.0001,2]
[404461452,1770157393467,-151.0,0.0001,2]
[404461453,1770157393508,-151.0,0.0001,2]
[404461454,1770157393552,-151.0,0.0001,2]
[404461455,1770157393595,-151.0,0.0001,2]
[404461456,1770157393636,-151.0,0.0001,2]
[404461457,1770157393677,-151.0,0.0001,2]
[404461458,1770157393719,-151.0,0.0001,2]
[404461459,1770157393763,-151.0,0.0001,2]
[404461460,1770157393803,-151.0,0.0001,2]
[404461461,1770157393843,-151.0,0.0001,2]
[404461462,1770157393883,-151.0,0.0001,2]
[404461463,1770157393927,-151.0,0.0001,2]
[404461464,1770157393974,-151.0,0.0001,2]
[404461465,1770157394019,-151.0,0.0001,2]
[404461466,1770157394063,-151.0,0.0001,2]
[404461467,1770157394106,-151.0,0.0001,2]
[404461468,1770157394150,-151.0,0.0001,2]
[404461469,1770157394195,-151.0,0.0001,2]
[404461470,1770157394240,-151.0,0.0001,2]
[404461471,1770157394291,-151.0,0.0001,2]
[404461472,1770157394333,-500.0,0.0001,2]
[404461473,1770157394376,-521.49861967,0.0001,2]
[404461474,1770157394422,-166.66,0.0001009,2]
[404461475,1770157394467,-9999.99,0.00010102,2]
[404461476,1770157394515,-299.99,0.00010102,2]
[404461477,1770157394561,-150.99,0.00010103,2]
[404461478,1770157394605,-500.0,0.00010274,2]
[404461479,1770157394652,-643.0,0.0001033,2]
[404461480,1770157394698,-166.66,0.00010412,2]
[404461481,1770157394741,-10295.06,0.00010433,2]
[404461482,1770157394787,-500.0,0.00010548,2]
[404461483,1770157394830,-1600.0,0.00010668,2]
[404461484,1770157394870,-166.66,0.00010734,2]
[404461485,1770157394913,-587.0,0.00010869,2]
[404461486,1770157394958,-2351.0,0.00010871,2]
[404461487,1770157395007,-433.0,0.00010871,2]
[404461488,1770157395052,-5531.0,0.00011,5]
[404461489,1770157395269,-500.0,0.00011017,2]
[404461490,1770157395312,-500.0,0.00011017,2]
[404461491,1770157395354,-501.19379068,0.00011017,2]
[404461492,1770157395396,-500.0,0.00011017,2]
[404461493,1770157395441,-500.0,0.00011017,2]
[404461494,1770157395487,-568.13485314,0.00011017,2]
[404461495,1770157395533,-500.0,0.00011017,2]
[404461496,1770157395578,-500.0,0.00011017,2]
[404461497,1770157395621,-500.0,0.00011017,2]
[404461498,1770157395664,-500.0,0.00011017,2]
[404461499,1770157395706,-500.0,0.00011017,2]
[404461500,1770157395748,-500.0,0.00011017,2]
[404461501,1770157395788,-500.0,0.00011017,2]
[404461502,1770157395829,-500.0,0.00011017,2]
[404461503,1770157395868,-438.01782069,0.00011017,2]
[404461504,1770157395908,-509.39048434,0.00011017,2]
[404461505,1770157395949,-614.54645313,0.00011017,2]
[404461506,1770157395989,-500.0,0.00011017,2]
[404461507,1770157396034,-500.0,0.00011017,2]
[404461508,1770157396079,-500.0,0.00011017,2]
[404461509,1770157396123,-166.66,0.00011057,2]
[404461510,1770157396165,-151.0,0.00011096,2]
[404461511,1770157396207,-500.0,0.00011096,2]
[404461512,1770157396250,-53775.80291308,0.00011099,2]
[404461513,1770157396292,-53775.80291304,0.00011099,2]
[404461514,1770157396333,-53775.80291304,0.00011099,2]
[404461515,1770157396375,-53775.80291304,0.00011099,2]
[404461516,1770157396416,-53775.80291304,0.00011099,2]
[404461517,1770157396458,-23531.93383968,0.00011099,2]
[404461518,1770157396501,-23531.93383965,0.00011099,2]
[404461519,1770157396547,-23531.93383965,0.00011099,2]
[404461520,1770157396589,-23531.93383965,0.00011099,2]
[404461521,1770157396633,-23531.93383965,0.00011099,2]
[404461522,1770157396677,-23531.93383965,0.00011099,2]
[404461523,1770157396720,-23531.93383965,0.00011105,2]
[404461524,1770157396764,-500.0,0.00011151,2]
[404461525,1770157396807,-448.16,0.00011201,2]
[404461526,1770157396845,-166.66,0.00011379,2]
[404461527,1770157396884,-500.0,0.00011397,2]
[404461528,1770157396924,-23531.93383965,0.00011442,2]
[404461529,1770157396963,-132145.57697,0.00011468,2]
[404461530,1770157397005,-6713.7144773,0.00011468,2]
[404461531,1770157397044,-2553.362838,0.00011468,2]
[404461532,1770157397084,-331.490209,0.00011468,2]
[404461533,1770157397123,-2553.362838,0.00011468,2]
[404461534,1770157397162,-331.490209,0.00011468,2]
[404461535,1770157397201,-2553.362838,0.00011468,2]
[404461536,1770157397239,-331.490209,0.00011468,2]
[404461537,1770157397278,-2553.362838,0.00011468,2]
[404461538,1770157397317,-331.490209,0.00011468,2]
[404461539,1770157397354,-151.0,0.00011468,2]
[404461540,1770157397392,-151.0,0.00011468,2]
[404461541,1770157397433,-1933.406863,0.00011468,2]
[404461542,1770157397475,-1933.406863,0.00011468,2]
[404461543,1770157397520,-1933.406863,0.00011468,2]
[404461544,1770157397562,-1933.406863,0.00011468,2]
[404461545,1770157397603,-186.621163,0.00011468,2]
[404461546,1770157397645,-53775.80291304,0.00011503,2]
[404461547,1770157397686,-221.6894181,0.00011565,2]
[404461548,1770157397726,-1000.0,0.00011565,2]
[404461549,1770157397767,-1000.0,0.00011565,2]
[404461550,1770157397806,-1000.0,0.00011565,2]
[404461551,1770157397845,-1000.0,0.00011565,2]
[404461552,1770157397884,-1000.0,0.00011565,2]
[404461553,1770157397925,-507.89061165,0.00011565,2]
[404461554,1770157397965,-296.55427389,0.00011565,2]
[404461555,1770157398006,-153.7070239,0.00011565,2]
[404461556,1770157398044,-1000.0,0.00011565,2]
[404461557,1770157398082,-1113.56434793,0.00011565,2]
[404461558,1770157398122,-23531.93383965,0.00011779,2]
[404461559,1770157398162,-1600.0,0.00011853,2]
[404461560,1770157398201,-200.0,0.00011872,2]
[404461561,1770157398240,-151.0,0.00011872,2]
[404461562,1770157398278,-151.0,0.00011872,2]
[404461563,1770157398316,-200.0,0.00011872,2]
[404461564,1770157398356,-400.0,0.000119,4]
[404461565,1770157398399,-823.0,0.00011956,2]
[404461566,1770157398441,-3292.0,0.00011958,2]
[404461567,1770157398480,-736.0,0.00011958,2]
[404461568,1770157398518,-200.0,0.00011991,2]
[404461569,1770157398556,-200.0,0.00011991,2]
[404461570,1770157398597,-53775.80291304,0.00012027,2]
[404461571,1770157398638,-1651.62,0.00012076,2]
[404461572,1770157398675,-200.0,0.00012111,2]
[404461573,1770157398712,-200.0,0.00012111,2]
[404461574,1770157398746,-702.19051214,0.00012113,2]
[404461575,1770157398967,-1500.0,0.00012113,2]
[404461576,1770157399009,-1500.0,0.00012113,2]
[404461577,1770157399046,-1500.0,0.00012113,2]
[404461578,1770157399082,-1500.0,0.00012113,2]
[404461579,1770157399121,-1085.6983119,0.00012113,2]
[404461580,1770157399160,-151.0,0.00012113,2]
[404461581,1770157399197,-23531.93383965,0.00012116,2]
[404461582,1770157399234,-250.0,0.00012146,2]
[404461583,1770157399271,-169.62,0.00012179,2]
[404461584,1770157399312,-200.0,0.00012232,2]
[404461585,1770157399352,-200.0,0.00012232,2]
[404461586,1770157399391,-500.25,0.00012329,2]
[404461587,1770157399431,-200.0,0.00012354,2]
[404461588,1770157399469,-200.0,0.00012354,2]
[404461589,1770157399508,-151.0,0.00012493,2]
[404461590,1770157399548,-151.0,0.00012493,2]
[404461591,1770157399588,-500.0,0.00012493,2]
[404461592,1770157399628,-53775.80291304,0.00012551,2]
[404461593,1770157399670,-2000.0,0.00012661,2]
[404461594,1770157399711,-2000.0,0.00012661,2]
[404461595,1770157399755,-2000.0,0.00012661,2]
[404461596,1770157399794,-2000.0,0.00012661,2]
[404461597,1770157399835,-169.62,0.00012708,2]
[404461598,1770157399872,-6713.7144773,0.00012892,2]
[404461599,1770157399910,-1000.0,0.00012963,2]
[404461600,1770157399948,-1600.0,0.00013039,2]
[404461601,1770157399984,-151.0,0.00013061,2]
[404461602,1770157400021,-53775.80291304,0.00013074,2]
[404461603,1770157400057,-1252.0,0.00013152,2]
[404461604,1770157400094,-1152.0,0.00013152,2]
[404461605,1770157400136,-4609.0,0.00013153,2]
[404461606,1770157400179,-502.61786166,0.00013208,2]
[404461607,1770157400221,-1678.77294454,0.00013208,2]
[404461608,1770157400262,-2500.0,0.00013208,2]
[404461609,1770157400302,-2500.0,0.00013208,2]
[404461610,1770157400342,-439.95353768,0.00013232,2]
[404461611,1770157400379,-169.62,0.00013238,2]
[404461612,1770157400420,-148663.7740913,0.00013363,2]
[404461613,1770157400459,-1397.82769642,0.00013393,2]
[404461614,1770157400499,-521.49861966,0.00013393,2]
[404461615,1770157400543,-3240.0,0.00013425,2]
[404461616,1770157400584,-53775.80291304,0.00013598,2]
[404461617,1770157400627,-160.0,0.00013648,2]
[404461618,1770157400668,-500.0,0.00013671,2]
[404461619,1770157400714,-1298.53,0.00013698,2]
[404461620,1770157400759,-1298.53,0.00013698,2]
[404461621,1770157400801,-1298.53,0.00013698,2]
[404461622,1770157400843,-1298.53,0.00013698,2]
[404461623,1770157400883,-1298.53,0.00013698,2]
[404461624,1770157400926,-1298.53,0.00013698,2]
[404461625,1770157400971,-1298.53,0.00013698,2]
[404461626,1770157401016,-1298.53,0.00013698,2]
[404461627,1770157401062,-1298.53,0.00013698,2]
[404461628,1770157401108,-518.96,0.00013698,2]
[404461629,1770157401155,-518.96,0.00013698,2]
[404461630,1770157401201,-518.96,0.00013698,2]
[404461631,1770157401247,-518.96,0.00013698,2]
[404461632,1770157401294,-518.96,0.00013698,2]
[404461633,1770157401338,-518.96,0.00013698,2]
[404461634,1770157401383,-518.96,0.00013698,2]
[404461635,1770157401428,-518.96,0.00013698,2]
[404461636,1770157401473,-518.96,0.00013698,2]
[404461637,1770157401518,-500.0,0.00013698,2]
[404461638,1770157401563,-500.0,0.00013698,2]
[404461639,1770157401610,-500.0,0.00013698,2]
[404461640,1770157401655,-500.0,0.00013698,2]
[404461641,1770157401700,-500.0,0.00013698,2]
[404461642,1770157401743,-500.0,0.00013698,2]
[404461643,1770157401788,-500.0,0.00013698,2]
[404461644,1770157401831,-500.0,0.00013698,2]
[404461645,1770157401874,-500.0,0.00013698,2]
[404461646,1770157401917,-530.59,0.00013698,2]
[404461647,1770157401960,-530.59,0.00013698,2]
[404461648,1770157402007,-530.59,0.00013698,2]
[404461649,1770157402050,-530.59,0.00013698,2]
[404461650,1770157402092,-530.59,0.00013698,2]
[404461651,1770157402133,-530.59,0.00013698,2]
[404461652,1770157402174,-530.59,0.00013698,2]
[404461653,1770157402215,-530.59,0.00013698,2]
[404461654,1770157402257,-530.59,0.00013698,2]
[404461655,1770157402299,-246.23,0.00013698,2]
[404461656,1770157402341,-500.0,0.00013698,2]
[404461657,1770157402381,-500.0,0.00013698,2]
[404461658,1770157402423,-500.0,0.00013698,2]
[404461659,1770157402465,-500.0,0.00013698,2]
[404461660,1770157402508,-500.0,0.00013698,2]
[404461661,1770157402554,-500.0,0.00013698,2]
[404461662,1770157402795,-500.0,0.00013698,2]
[404461663,1770157402838,-340.86649345,0.00013698,2]
[404461664,1770157402881,-500.0,0.00013698,2]
[404461665,1770157402927,-500.0,0.00013698,2]
[404461666,1770157402970,-257.68029919,0.00013698,2]
[404461667,1770157403014,-500.0,0.00013698,2]
[404461668,1770157403062,-500.0,0.00013698,2]
[404461669,1770157403108,-500.0,0.00013698,2]
[404461670,1770157403158,-500.0,0.00013698,2]
[404461671,1770157403210,-500.0,0.00013698,2]
[404461672,1770157403257,-500.0,0.00013698,2]
[404461673,1770157403304,-621.54062452,0.00013698,2]
[404461674,1770157403349,-500.0,0.00013698,2]
[404461675,1770157403394,-500.0,0.00013698,2]
[404461676,1770157403440,-500.0,0.00013698,2]
[404461677,1770157403485,-500.0,0.00013698,2]
[404461678,1770157403533,-500.0,0.00013698,2]
[404461679,1770157403581,-500.0,0.00013698,2]
[404461680,1770157403627,-500.0,0.00013698,2]
[404461681,1770157403673,-500.0,0.00013698,2]
[404461682,1770157403718,-500.0,0.00013698,2]
[404461683,1770157403760,-500.0,0.00013698,2]
[404461684,1770157403804,-500.0,0.00013698,2]
[404461685,1770157403847,-500.0,0.00013698,2]
[404461686,1770157403899,-500.0,0.00013698,2]
[404461687,1770157403943,-500.0,0.00013698,2]
[404461688,1770157403984,-500.0,0.00013698,2]
[404461689,1770157404027,-500.0,0.00013698,2]
[404461690,1770157404068,-500.0,0.00013698,2]
[404461691,1770157404113,-500.0,0.00013698,2]
[404461692,1770157404160,-844.54,0.00013698,2]
[404461693,1770157404207,-844.54,0.00013698,2]
[404461694,1770157404255,-844.54,0.00013698,2]
[404461695,1770157404299,-844.54,0.00013698,2]
[404461696,1770157404342,-844.54,0.00013698,2]
[404461697,1770157404386,-844.54,0.00013698,2]
[404461698,1770157404430,-844.54,0.00013698,2]
[404461699,1770157404473,-844.54,0.00013698,2]
[404461700,1770157404525,-844.54,0.00013698,2]
[404461701,1770157404570,-500.0,0.00013698,2]
[404461702,1770157404615,-500.0,0.00013698,2]
[404461703,1770157404660,-500.0,0.00013698,2]
[404461704,1770157404706,-500.0,0.00013698,2]
[404461705,1770157404751,-500.0,0.00013698,2]
[404461706,1770157404798,-500.0,0.00013698,2]
[404461707,1770157404844,-500.0,0.00013698,2]
[404461708,1770157404886,-500.0,0.00013698,2]
[404461709,1770157404929,-500.0,0.00013698,2]
[404461710,1770157404969,-500.0,0.00013698,2]
[404461711,1770157405009,-500.0,0.00013698,2]
[404461712,1770157405050,-500.0,0.00013698,2]
[404461713,1770157405088,-500.0,0.00013698,2]
[404461714,1770157405129,-248.79623194,0.00013698,2]
[404461715,1770157405177,-500.0,0.00013698,2]
[404461716,1770157405221,-500.0,0.00013698,2]
[404461717,1770157405264,-500.0,0.00013698,2]
[404461718,1770157405306,-500.0,0.00013698,2]
[404461719,1770157405349,-500.0,0.00013698,2]
[404461720,1770157405393,-500.0,0.00013698,2]
[404461721,1770157405437,-500.0,0.00013698,2]
[404461722,1770157405482,-500.0,0.00013698,2]
[404461723,1770157405530,-500.0,0.00013698,2]
[404461724,1770157405577,-500.0,0.00013698,2]
[404461725,1770157405622,-500.0,0.00013698,2]
[404461726,1770157405668,-1664.74,0.00013698,2]
[404461727,1770157405714,-500.0,0.00013698,2]
[404461728,1770157405758,-1664.74,0.00013698,2]
[404461729,1770157405799,-500.0,0.00013698,2]
[404461730,1770157405843,-1664.74,0.00013698,2]
[404461731,1770157405883,-199.59474269,0.00013698,2]
[404461732,1770157405925,-1664.74,0.00013698,2]
[404461733,1770157405966,-1664.74,0.00013698,2]
[404461734,1770157406010,-1664.74,0.00013698,2]
[404461735,1770157406051,-1664.74,0.00013698,2]
[404461736,1770157406091,-1664.74,0.00013698,2]
[404461737,1770157406134,-1664.74,0.00013698,2]
[404461738,1770157406178,-500.0,0.00013698,2]
[404461739,1770157406222,-500.0,0.00013698,2]
[404461740,1770157406266,-500.0,0.00013698,2]
[404461741,1770157406310,-500.0,0.00013698,2]
[404461742,1770157406352,-500.0,0.00013698,2]
[404461743,1770157406395,-500.0,0.00013698,2]
[404461744,1770157406436,-500.92,0.00013698,2]
[404461745,1770157406479,-500.92,0.00013698,2]
[404461746,1770157406522,-500.0,0.00013698,2]
[404461747,1770157406567,-500.0,0.00013698,2]
[404461748,1770157406932,-500.92,0.00013698,2]
[404461749,1770157406980,-500.92,0.00013698,2]
[404461750,1770157407023,-500.0,0.00013698,2]
[404461751,1770157407067,-500.92,0.00013698,2]
[404461752,1770157407115,-500.0,0.00013698,2]
[404461753,1770157407162,-500.0,0.00013698,2]
[404461754,1770157407210,-500.92,0.00013698,2]
[404461755,1770157407256,-500.0,0.00013698,2]
[404461756,1770157407301,-500.92,0.00013698,2]
[404461757,1770157407346,-500.0,0.00013698,2]
[404461758,1770157407387,-500.92,0.00013698,2]
[404461759,1770157407427,-500.0,0.00013698,2]
[404461760,1770157407467,-500.92,0.00013698,2]
[404461761,1770157407510,-500.0,0.00013698,2]
[404461762,1770157407557,-500.0,0.00013698,2]
[404461763,1770157407600,-500.0,0.00013698,2]
[404461764,1770157407642,-509.06540724,0.00013698,2]
[404461765,1770157407685,-521.47434026,0.00013698,2]
[404461766,1770157407728,-500.0,0.00013698,2]
[404461767,1770157407776,-500.0,0.00013698,2]
[404461768,1770157407821,-500.0,0.00013698,2]
[404461769,1770157407863,-500.0,0.00013698,2]
[404461770,1770157407906,-151.0,0.00013698,2]
[404461771,1770157407951,-151.0,0.00013698,2]
[404461772,1770157407995,-500.0,0.00013698,2]
[404461773,1770157408041,-500.0,0.00013698,2]
[404461774,1770157408084,-500.0,0.00013698,2]
[404461775,1770157408127,-500.0,0.00013698,2]
[404461776,1770157408170,-500.0,0.00013698,2]
[404461777,1770157408212,-500.0,0.00013698,2]
[404461778,1770157408257,-500.0,0.00013698,2]
[404461779,1770157408299,-500.0,0.00013698,2]
[404461780,1770157408338,-500.0,0.00013698,2]
[404461781,1770157408382,-500.0,0.00013698,2]
[404461782,1770157408426,-1933.406863,0.00013698,2]
[404461783,1770157408469,-1933.406863,0.00013698,2]
[404461784,1770157408514,-1933.406863,0.00013698,2]
[404461785,1770157408557,-1933.406863,0.00013698,2]
[404461786,1770157408598,-500.0,0.00013698,2]
[404461787,1770157408640,-500.0,0.00013698,2]
[404461788,1770157408681,-500.0,0.00013698,2]
[404461789,1770157408722,-500.0,0.00013698,2]
[404461790,1770157408764,-500.0,0.00013698,2]
[404461791,1770157408808,-500.0,0.00013698,2]
[404461792,1770157408851,-500.0,0.00013698,2]
[404461793,1770157408891,-390.95316192,0.00013698,2]
[404461794,1770157408929,-500.0,0.00013698,2]
[404461795,1770157408967,-500.0,0.00013698,2]
[404461796,1770157409006,-500.0,0.00013698,2]
[404461797,1770157409043,-500.0,0.00013698,2]
[404461798,1770157409081,-500.0,0.00013698,2]
[404461799,1770157409122,-500.0,0.00013698,2]
[404461800,1770157409164,-500.0,0.00013698,2]
[404461801,1770157409207,-500.0,0.00013698,2]
[404461802,1770157409247,-222.2546637,0.00013698,2]
[404461803,1770157409288,-500.0,0.00013698,2]
[404461804,1770157409326,-500.0,0.00013698,2]
[404461805,1770157409364,-500.0,0.00013698,2]
[404461806,1770157409401,-500.0,0.00013698,2]
[404461807,1770157409439,-500.0,0.00013698,2]
[404461808,1770157409476,-508.00914529,0.00013698,2]
[404461809,1770157409515,-696.64,0.00013698,2]
[404461810,1770157409553,-696.64,0.00013698,2]
[404461811,1770157409591,-696.64,0.00013698,2]
[404461812,1770157409628,-696.64,0.00013698,2]
[404461813,1770157409664,-696.64,0.00013698,2]
[404461814,1770157409701,-696.64,0.00013698,2]
[404461815,1770157409739,-500.0,0.00013698,2]
[404461816,1770157409777,-696.64,0.00013698,2]
[404461817,1770157409814,-500.0,0.00013698,2]
[404461818,1770157409854,-696.64,0.00013698,2]
[404461819,1770157409893,-500.0,0.00013698,2]
[404461820,1770157409934,-696.64,0.00013698,2]
[404461821,1770157409974,-500.0,0.00013698,2]
[404461822,1770157410017,-696.64,0.00013698,2]
[404461823,1770157410059,-500.0,0.00013698,2]
[404461824,1770157410101,-696.64,0.00013698,2]
[404461825,1770157410143,-500.0,0.00013698,2]
[404461826,1770157410185,-696.64,0.00013698,2]
[404461827,1770157410227,-500.0,0.00013698,2]
[404461828,1770157410269,-696.64,0.00013698,2]
[404461829,1770157410313,-500.0,0.00013698,2]
[404461830,1770157410355,-500.0,0.00013698,2]
[404461831,1770157410398,-500.0,0.00013698,2]
[404461832,1770157410440,-696.64,0.00013698,2]
[404461833,1770157410480,-500.0,0.00013698,2]
[404461834,1770157410522,-696.64,0.00013698,2]
[404461835,1770157410815,-436.31504034,0.00013698,2]
[404461836,1770157410855,-696.64,0.00013698,2]
[404461837,1770157410896,-696.64,0.00013698,2]
[404461838,1770157410936,-696.64,0.00013698,2]
[404461839,1770157410976,-696.64,0.00013698,2]
[404461840,1770157411018,-696.64,0.00013698,2]
[404461841,1770157411062,-696.64,0.00013698,2]
[404461842,1770157411106,-696.64,0.00013698,2]
[404461843,1770157411148,-696.64,0.00013698,2]
[404461844,1770157411192,-696.68629093,0.00013698,2]
[404461845,1770157411234,-500.0,0.00013698,2]
[404461846,1770157411276,-500.0,0.00013698,2]
[404461847,1770157411323,-500.0,0.00013698,2]
[404461848,1770157411367,-500.0,0.00013698,2]
[404461849,1770157411413,-500.0,0.00013698,2]
[404461850,1770157411480,-500.0,0.00013698,2]
[404461851,1770157411549,-500.0,0.00013698,2]
[404461852,1770157411611,-500.0,0.00013698,2]
[404461853,1770157411659,-500.0,0.00013698,2]
[404461854,1770157411701,-500.0,0.00013698,2]
[404461855,1770157411747,-500.0,0.00013698,2]
[404461856,1770157411793,-500.0,0.00013698,2]
[404461857,1770157411834,-500.0,0.00013698,2]
[404461858,1770157411875,-500.0,0.00013698,2]
[404461859,1770157411915,-500.0,0.00013698,2]
[404461860,1770157411954,-500.0,0.00013698,2]
[404461861,1770157411992,-500.0,0.00013698,2]
[404461862,1770157412030,-245.91228722,0.00013698,2]
[404461863,1770157412068,-500.0,0.00013698,2]
[404461864,1770157412108,-500.0,0.00013698,2]
[404461865,1770157412149,-500.0,0.00013698,2]
[404461866,1770157412193,-500.0,0.00013698,2]
[404461867,1770157412237,-500.0,0.00013698,2]
[404461868,1770157412279,-500.0,0.00013698,2]
[404461869,1770157412321,-500.0,0.00013698,2]
[404461870,1770157412363,-500.0,0.00013698,2]
[404461871,1770157412404,-500.0,0.00013698,2]
[404461872,1770157412445,-13451.16,0.00013699,2]
[404461873,1770157412486,-559.24,0.00013699,2]
[404461874,1770157412529,-168.249905,0.00013699,2]
[404461875,1770157412571,-168.249905,0.00013699,2]
[404461876,1770157412613,-168.249905,0.00013699,2]
[404461877,1770157412654,-168.249905,0.00013699,2]
[404461878,1770157412693,-168.249905,0.00013699,2]
[404461879,1770157412733,-168.249905,0.00013699,2]
[404461880,1770157412773,-168.249905,0.00013699,2]
[404461881,1770157412814,-168.249905,0.00013699,2]
[404461882,1770157412853,-151.0,0.00013699,2]
[404461883,1770157412893,-152.69700585,0.00013699,2]
[404461884,1770157412935,-1161.0443467,0.00013732,2]
[404461885,1770157412976,-2048.21985055,0.00013732,2]
[404461886,1770157413015,-3064.01440045,0.00013732,2]
[404461887,1770157413054,-4145.7141,0.00013732,2]
[404461888,1770157413093,-3000.0,0.00013756,2]
[404461889,1770157413132,-3000.0,0.00013756,2]
[404461890,1770157413171,-169.62,0.00013767,2]
[404461891,1770157413210,-246.23,0.00013972,2]
[404461892,1770157413251,-150.0,0.00014029,7]
[404461893,1770157413295,-305.830313,0.00014029,7]
[404461894,1770157413336,-461.660627,0.00014029,7]
[404461895,1770157413376,-617.490941,0.00014029,7]
[404461896,1770157413416,-773.321255,0.00014029,7]
[404461897,1770157413458,-929.151569,0.00014029,7]
[404461898,1770157413502,-1084.981882,0.00014029,7]
[404461899,1770157413552,-1240.812196,0.00014029,7]
[404461900,1770157413596,-1396.64251,0.00014029,7]
[404461901,1770157413640,-1552.472824,0.00014029,7]
[404461902,1770157413682,-2553.362838,0.00014197,2]
[404461903,1770157413726,-331.490209,0.00014197,2]
[404461904,1770157413769,-2553.362838,0.00014197,2]
[404461905,1770157413810,-331.490209,0.00014197,2]
[404461906,1770157413848,-2553.362838,0.00014197,2]
[404461907,1770157413886,-331.490209,0.00014197,2]
[404461908,1770157413923,-2553.362838,0.00014197,2]
[404461909,1770157413960,-331.490209,0.00014197,2]
[404461910,1770157413998,-1600.0,0.00014224,2]
[404461911,1770157414040,-246.23,0.00014246,2]
[404461912,1770157414081,-169.62,0.00014297,2]
[404461914,1770157414117,-3500.0,0.00014304,2]
[404461915,1770157414153,-3222.7079547,0.00014304,2]
[404461916,1770157414190,-6713.7144773,0.00014317,2]
[404461917,1770157414224,-559.24,0.00014384,2]
[404461918,1770157414259,-1000.0,0.00014403,2]
[404461919,1770157414296,-1425.0,0.00014467,2]
[404461920,1770157414333,-6453.0,0.00014469,2]
[404461921,1770157414370,-637.0,0.00014473,2]
[404461922,1770157414407,-246.23,0.0001452,2]
[404461923,1770157414638,-500.0,0.00014521,2]
[404461924,1770157414680,-246.23,0.00014794,2]
[404461925,1770157414722,-2000.0,0.000148,2]
[404461926,1770157414760,-151.0,0.00014849,2]
[404461927,1770157414797,-4000.0,0.00014852,2]
[404461928,1770157414832,-600.0,0.000149,5]
[404461929,1770157414871,-314.00004,0.000149,2]
[404461930,1770157414913,-314.00004,0.000149,2]
[404461931,1770157414951,-314.00004,0.000149,2]
[404461932,1770157414987,-314.00004,0.000149,2]
[404461933,1770157415022,-250.0,0.00015,2]
[404461934,1770157415057,-165181.9712125,0.00015057,2]
[404461935,1770157415093,-151.0,0.00015058,2]
[404461936,1770157415131,-151.0,0.00015058,2]
[404461937,1770157415170,-151.0,0.00015058,2]